bitfinex/quotes_SOLUSD_20250130
["timestamp","ask_amount","ask_price","bid_price","bid_amount"]
[1738197482997,0.03,229.11,229.03,16.94744823]
[1738197483202,0.03,229.11,229.07,12.58124823]
[1738197483696,0.03,229.11,229.05,12.58124823]
[1738197484900,0.03,229.11,229.05,16.94704823]
[1738197485593,0.03,229.11,229.09,12.58124823]
[1738197486302,0.03,229.11,229.1,0.65461588]
[1738197486490,0.03,229.11,229.1,5.01951588]
[1738197487094,0.03,229.21,229.16,1.0]
[1738197487391,0.03,229.21,229.2,32.58124823]
[1738197487589,0.03,229.32,229.2,47.32119991]
[1738197487809,0.03,229.32,229.27,12.58124823]
[1738197488297,5.20784678,229.32,229.23,12.58124823]
[1738197488502,0.37647,229.31,229.19,12.58124823]
[1738197488698,24.153354,229.29,229.16,12.58124823]
[1738197489006,0.12549,229.26,229.16,12.58124823]
[1738197489190,0.12549,229.25,229.16,12.58124823]
[1738197489699,23.776884,229.3,229.16,12.58124823]
[1738197489700,4.95686678,229.32,229.2,12.58124823]
[1738197489900,4.95686678,229.32,229.22,12.58124823]
[1738197490212,0.25098,229.31,229.22,12.58124823]
[1738197490398,0.25098,229.31,229.24,12.58124823]
[1738197490904,0.12549,229.33,229.21,4.3627]
[1738197491103,4.3601,229.35,229.27,12.58124823]
[1738197491312,10.7498,229.38,229.29,12.58124823]
[1738197491485,1.0,229.44,229.29,12.58124823]
[1738197491486,8.0311,229.48,229.37,12.58124823]
[1738197491684,8.0311,229.48,229.39,12.58124823]
[1738197491685,12.3889,229.48,229.39,12.58124823]
[1738197491881,8.0278,229.48,229.39,12.58124823]
[1738197493194,0.25098,229.47,229.39,12.58124823]
[1738197493623,24.027864,229.47,229.35,12.58124823]
[1738197494141,8.0278,229.48,229.43,12.58124823]
[1738197494306,3.67,229.48,229.45,12.58124823]
[1738197494626,8.0277,229.48,229.42,20.06709088]
[1738197494783,8.0277,229.48,229.35,4.36]
[1738197494988,8.0277,229.48,229.31,17.1543]
[1738197494989,0.25098,229.47,229.36,20.06709088]
[1738197495420,0.25098,229.47,229.38,20.06709088]
[1738197495586,8.0277,229.48,229.38,20.06709088]
[1738197495992,0.12549,229.47,229.38,20.06709088]
[1738197496224,3.67,229.48,229.46,20.06709088]
[1738197498340,0.03,229.54,229.46,20.06709088]
[1738197498544,0.03,229.54,229.48,20.06709088]
[1738197498715,4.3866,229.54,229.46,20.06709088]
[1738197498913,4.3866,229.54,229.5,20.06709088]
[1738197499431,4.3866,229.54,229.53,20.06709088]
[1738197499432,0.03,229.54,229.53,20.06709088]
[1738197500526,0.03,229.54,229.51,20.06709088]
[1738197500727,0.03,229.54,229.53,20.06709088]
[1738197501235,0.03,229.54,229.51,20.06709088]
[1738197501726,0.03,229.54,229.49,20.06709088]
[1738197502127,0.03,229.54,229.53,20.06709088]
[1738197510926,0.03,229.54,229.51,4.357]
[1738197510927,0.03,229.54,229.51,20.06709088]
[1738197511142,0.03,229.54,229.44,20.06709088]
[1738197511630,4.3569,229.52,229.44,20.06709088]
[1738197512037,0.12549,229.51,229.44,20.06709088]
[1738197512220,0.25098,229.51,229.42,20.06709088]
[1738197513135,0.12549,229.51,229.44,20.06709088]
[1738197513331,0.03,229.54,229.44,20.06709088]
[1738197513536,0.37647,229.52,229.41,20.06709088]
[1738197513737,24.153354,229.52,229.39,20.06709088]
[1738197513936,24.153354,229.52,229.38,20.06709088]
[1738197514251,25.153354,229.52,229.38,20.06709088]
[1738197515249,0.12549,229.49,229.38,20.06709088]
[1738197515752,0.12549,229.46,229.36,0.063]
[1738197516441,0.12549,229.46,229.37,20.06709088]
[1738197517154,0.12549,229.43,229.36,20.13009088]
[1738197517936,0.12549,229.43,229.37,20.06709088]
[1738197519247,1.0,229.53,229.42,20.06709088]
[1738197519458,4.3569,229.52,229.44,20.06709088]
[1738197519765,4.3569,229.52,229.45,20.06709088]
[1738197520645,1.6874,229.54,229.47,20.06709088]
[1738197520849,1.6874,229.54,229.49,20.06709088]
[1738197521059,0.03,229.54,229.52,20.06709088]
[1738197521740,0.03,229.54,229.53,20.06709088]
[1738197523247,0.03,229.54,229.53,24.42379088]
[1738197527877,0.03,229.54,229.53,20.06709088]
[1738197528390,0.03,229.54,229.51,24.42399088]
[1738197528575,0.03,229.54,229.51,20.06709088]
[1738197528878,0.03,229.54,229.45,10.8954]
[1738197528879,0.03,229.54,229.53,20.06709088]
[1738197529084,0.03,229.54,229.53,24.42379088]
[1738197530678,0.03,229.54,229.48,20.06709088]
[1738197530877,0.03,229.54,229.47,4.3578]
[1738197531178,0.03,229.54,229.47,24.42489088]
[1738197531362,0.03,229.54,229.48,20.06709088]
[1738197531564,0.03,229.54,229.46,20.06709088]
[1738197532482,0.03,229.54,229.47,20.06709088]
[1738197532781,0.15549,229.54,229.47,20.06709088]
[1738197532981,0.15549,229.54,229.45,44.42519088]
[1738197533677,0.12549,229.53,229.45,24.42519088]
[1738197534061,0.25098,229.53,229.45,20.06709088]
[1738197534261,4.3866,229.54,229.45,24.42519088]
[1738197534862,0.03,229.54,229.47,20.06709088]
[1738197535060,0.03,229.54,229.51,20.06709088]
[1738197535270,0.03,229.54,229.53,20.06709088]
[1738197535678,0.03,229.54,229.53,24.42379088]
[1738197541277,0.03,229.54,229.53,20.06709088]
[1738197544877,0.03,229.54,229.49,20.06709088]
[1738197546495,0.03,229.54,229.41,2.22712832]
[1738197546496,0.03,229.54,229.53,20.06709088]
[1738197547290,0.0001,229.54,229.53,20.06709088]
[1738197547673,0.0001,229.54,229.53,20.72026487]
[1738197548190,0.0001,229.54,229.53,45.14405575]
[1738197548387,0.0001,229.54,229.53,25.07696487]
[1738197549494,0.0001,229.54,229.53,26.07696487]
[1738197549681,0.0001,229.54,229.53,25.07696487]
[1738197551374,0.0001,229.54,229.53,45.14405575]
[1738197552293,0.0001,229.54,229.53,45.26954575]
[1738197552495,6.2256,229.77,229.68,20.06709088]
[1738197552794,0.12549,229.76,229.68,20.06709088]
[1738197552995,0.12549,229.76,229.65,20.06709088]
[1738197553374,0.12549,229.75,229.67,20.06709088]
[1738197553791,0.12549,229.75,229.66,20.06709088]
[1738197554090,4.3827,229.74,229.67,20.06709088]
[1738197554298,4.3827,229.74,229.69,20.06709088]
[1738197554299,0.03,229.74,229.69,20.06709088]
[1738197554486,0.03,229.74,229.71,20.06709088]
[1738197554687,0.03,229.74,229.7,20.06709088]
[1738197555877,0.03,229.74,229.72,20.06709088]
[1738197556187,0.03,229.74,229.73,20.06709088]
[1738197556985,0.03,229.74,229.7,20.06709088]
[1738197557192,0.03,229.74,229.67,20.06709088]
[1738197557392,0.03,229.74,229.68,24.42089088]
[1738197558002,0.03,229.74,229.69,20.06709088]
[1738197558204,0.03,229.74,229.71,20.06709088]
[1738197558383,0.03,229.74,229.73,20.06709088]
[1738197559279,0.03,229.74,229.73,24.41999088]
[1738197560391,0.03,229.74,229.73,25.07277351]
[1738197561302,0.03,229.74,229.73,24.41999088]
[1738197568227,0.03,229.74,229.73,20.06709088]
[1738197568711,0.03,229.74,229.73,12.51130592]
[1738197570124,0.03,229.74,229.72,12.51130592]
[1738197570321,0.03,229.74,229.71,12.51130592]
[1738197571312,0.03,229.74,229.72,12.51130592]
[1738197571710,0.03,229.74,229.71,12.51130592]
[1738197572019,0.03,229.74,229.65,12.51130592]
[1738197572320,0.03,229.74,229.67,12.51130592]
[1738197572519,0.03,229.74,229.72,12.51130592]
[1738197573016,0.03,229.74,229.7,12.51130592]
[1738197573317,0.03,229.74,229.71,12.51130592]
[1738197573723,0.03,229.74,229.7,16.86470592]
[1738197574102,0.03,229.74,229.7,12.51130592]
[1738197575901,0.03,229.74,229.7,16.86470592]
[1738197576302,0.03,229.74,229.72,12.51130592]
[1738197576521,0.03,229.74,229.71,12.51130592]
[1738197577023,0.03,229.74,229.7,12.51130592]
[1738197577197,0.03,229.74,229.69,12.51130592]
[1738197577394,0.03,229.74,229.68,12.51130592]
[1738197578131,0.03,229.74,229.66,12.51130592]
[1738197579011,0.03,229.74,229.68,12.51130592]
[1738197579221,4.3827,229.74,229.68,12.51130592]
[1738197579431,0.03,229.74,229.68,12.51130592]
[1738197579593,0.03,229.74,229.7,12.51130592]
[1738197580198,0.03,229.74,229.68,12.51130592]
[1738197580397,0.03,229.74,229.64,12.51130592]
[1738197580398,0.28098,229.74,229.64,12.51130592]
[1738197580801,24.057864,229.74,229.64,12.51130592]
[1738197581004,24.057864,229.74,229.62,12.51130592]
[1738197581204,24.057864,229.74,229.64,12.51130592]
[1738197581205,0.12549,229.72,229.64,12.51130592]
[1738197581918,0.12549,229.72,229.63,12.51130592]
[1738197582223,4.3531,229.72,229.63,16.86600592]
[1738197583125,4.3531,229.72,229.65,12.51130592]
[1738197584828,0.12549,229.71,229.63,12.51130592]
[1738197585204,0.03,229.74,229.68,12.51130592]
[1738197585513,0.03,229.74,229.7,12.51130592]
[1738197585909,0.25098,229.73,229.67,12.51130592]
[1738197586108,0.03,229.74,229.67,12.51130592]
[1738197587026,0.03,229.74,229.69,12.51130592]
[1738197587527,0.03,229.74,229.71,12.51130592]
[1738197588019,0.03,229.74,229.73,12.51130592]
[1738197588921,0.03,229.74,229.73,16.86420592]
[1738197592237,0.03,229.77,229.73,27.74650592]
[1738197592415,0.03,229.77,229.76,12.51130592]
[1738197593125,0.03,229.77,229.76,16.86360592]
[1738197594036,1.6656,229.89,229.76,28.39712221]
[1738197594333,1.6656,229.89,229.85,12.51130592]
[1738197594729,1.6656,229.89,229.84,12.51130592]
[1738197594909,1.6656,229.89,229.84,16.86210592]
[1738197595345,5.9726,229.94,229.86,12.51130592]
[1738197595527,5.9726,229.94,229.88,12.51130592]
[1738197595728,0.12549,229.93,229.88,12.51130592]
[1738197595934,5.9726,229.94,229.88,12.51130592]
[1738197596119,5.9726,229.94,229.89,12.51130592]
[1738197596314,1.6235,229.94,229.89,12.51130592]
[1738197597630,1.6235,229.94,229.87,4.3501]
[1738197597631,5.9724,229.94,229.87,12.51130592]
[1738197598329,0.03,229.97,229.9,12.51130592]
[1738197598628,0.03,229.97,229.95,12.51130592]
[1738197598828,0.03,229.97,229.94,12.51130592]
[1738197599621,0.03,229.97,229.93,12.51130592]
[1738197600026,0.03,229.97,229.94,12.51130592]
[1738197600415,0.03,229.97,229.92,12.51130592]
[1738197600919,0.03,229.97,229.95,12.51130592]
[1738197601126,0.03,229.97,229.96,12.51130592]
[1738197603145,0.03,229.97,229.94,12.51130592]
[1738197603349,0.03,229.97,229.85,12.51130592]
[1738197603523,0.03,229.97,229.83,12.51130592]
[1738197603718,6.0069,229.94,229.81,12.51130592]
[1738197603912,6.0069,229.94,229.82,12.51130592]
[1738197604228,6.0069,229.94,229.85,12.51130592]
[1738197604542,6.0069,229.94,229.82,12.51130592]
[1738197604928,6.0069,229.94,229.83,12.51130592]
[1738197605433,6.0069,229.94,229.79,6.278]
[1738197605434,4.3491,229.93,229.82,12.51130592]
[1738197605649,0.12549,229.92,229.8,12.51130592]
[1738197605936,24.153354,229.92,229.79,12.51130592]
[1738197606138,24.153354,229.92,229.8,12.51130592]
[1738197606436,24.153354,229.92,229.81,12.51130592]
[1738197606943,0.12549,229.9,229.8,12.51130592]
[1738197607240,0.12549,229.9,229.79,12.51130592]
[1738197607241,24.027864,229.9,229.79,12.51130592]
[1738197607741,0.12549,229.87,229.74,12.51130592]
[1738197608039,1.0,229.86,229.73,12.51130592]
[1738197608227,0.12549,229.84,229.72,12.51130592]
[1738197608551,0.12549,229.82,229.69,12.51130592]
[1738197608727,0.12549,229.82,229.68,12.51130592]
[1738197609040,24.027864,229.8,229.67,12.51130592]
[1738197609619,1.5313,229.79,229.67,12.51130592]
[1738197609826,24.027864,229.78,229.65,12.51130592]
[1738197610147,0.12549,229.77,229.63,12.51130592]
[1738197610331,0.12549,229.74,229.61,12.51130592]
[1738197610639,0.12549,229.74,229.6,12.51130592]
[1738197610839,6.6407,229.73,229.6,12.51130592]
[1738197611040,4.3531,229.72,229.6,12.51130592]
[1738197611444,24.153354,229.71,229.59,12.51130592]
[1738197611629,0.25098,229.67,229.54,19.38229881]
[1738197611834,0.25098,229.65,229.54,6.87099289]
[1738197612654,0.25098,229.63,229.54,6.87099289]
[1738197613155,4.355,229.62,229.54,6.87099289]
[1738197613641,0.12549,229.61,229.54,6.87099289]
[1738197614432,24.153354,229.61,229.54,6.87099289]
[1738197614951,24.153354,229.59,229.54,0.063]
[1738197615256,4.3557,229.58,229.54,0.063]
[1738197616040,0.12549,229.57,229.54,0.063]
[1738197617962,28.509254,229.57,229.54,0.063]
[1738197618759,30.078854,229.57,229.54,0.063]
[1738197620665,6.05099,229.57,229.54,0.063]
[1738197621860,0.12549,229.56,229.54,0.063]
[1738197622246,0.25098,229.55,229.54,0.063]
[1738197622437,0.37647,229.55,229.54,0.063]
[1738197624051,28.509654,229.55,229.54,0.063]
[1738197624250,1.5696,229.57,229.54,0.063]
[1738197624449,5.9255,229.57,229.54,0.063]
[1738197624651,0.25098,229.56,229.54,0.063]
[1738197626136,0.37647,229.56,229.54,0.063]
[1738197626332,0.12549,229.56,229.54,0.063]
[1738197626570,1.5696,229.57,229.54,0.063]
[1738197627162,0.12549,229.56,229.54,0.063]
[1738197630379,4.48159,229.56,229.54,0.063]
[1738197631372,24.027864,229.55,229.54,0.063]
[1738197632069,4.60728,229.55,229.54,0.063]
[1738197633443,4.73277,229.55,229.54,0.063]
[1738197633964,28.509654,229.55,229.54,0.063]
[1738197634272,28.384164,229.55,229.54,0.063]
[1738197634773,28.509654,229.55,229.54,0.063]
[1738197635166,28.384164,229.55,229.54,0.063]
[1738197637678,0.12549,229.58,229.54,0.063]
[1738197637882,4.48119,229.58,229.54,0.063]
[1738197638078,24.027864,229.57,229.54,0.063]
[1738197638488,2.5518,229.62,229.54,0.063]
[1738197638489,4.3552,229.61,229.54,0.063]
[1738197638659,1.0,229.66,229.54,0.063]
[1738197638660,4.354,229.67,229.6,12.53907703]
[1738197638865,4.3539,229.68,229.63,12.53907703]
[1738197639060,4.3539,229.68,229.58,12.53907703]
[1738197639266,0.12549,229.67,229.54,12.60207703]
[1738197639576,20.0,229.65,229.55,12.53907703]
[1738197639870,5.3531,229.72,229.6,12.53907703]
[1738197640079,1.0,229.71,229.58,12.53907703]
[1738197640456,0.12549,229.67,229.58,12.53907703]
[1738197641080,0.12549,229.67,229.57,12.53907703]
[1738197641285,0.12549,229.67,229.56,12.53907703]
[1738197641496,0.12549,229.67,229.57,12.53907703]
[1738197641870,24.027864,229.65,229.57,12.53907703]
[1738197642067,4.3539,229.68,229.62,12.53907703]
[1738197642365,3.5265,229.73,229.57,12.53907703]
[1738197642366,5.3536,229.7,229.57,12.53907703]
[1738197642570,6.3536,229.7,229.56,12.53907703]
[1738197643077,6.3536,229.7,229.54,4.4194]
[1738197643078,24.153354,229.69,229.57,12.53907703]
[1738197643265,24.153354,229.69,229.58,12.53907703]
[1738197643606,0.25098,229.67,229.58,12.53907703]
[1738197644090,0.12549,229.67,229.59,12.53907703]
[1738197644269,24.153354,229.67,229.58,12.53907703]
[1738197644583,24.153354,229.67,229.57,12.53907703]
[1738197644971,0.37647,229.67,229.57,12.53907703]
[1738197645286,0.12549,229.65,229.57,12.53907703]
[1738197646287,4.3545,229.65,229.58,12.53907703]
[1738197646581,4.3545,229.65,229.59,12.53907703]
[1738197647284,0.37647,229.69,229.54,0.063]
[1738197647499,24.027864,229.67,229.58,12.53907703]
[1738197648293,0.25098,229.67,229.58,12.53907703]
[1738197648602,4.3542,229.66,229.58,12.53907703]
[1738197649580,4.3542,229.66,229.59,12.53907703]
[1738197649776,0.12549,229.65,229.57,12.53907703]
[1738197649987,0.12549,229.65,229.58,12.53907703]
[1738197650203,4.3542,229.66,229.59,12.53907703]
[1738197650706,4.3542,229.66,229.57,12.53907703]
[1738197651195,4.3542,229.66,229.58,12.53907703]
[1738197651981,0.12549,229.65,229.57,12.53907703]
[1738197652395,24.027864,229.65,229.55,16.89527703]
[1738197652599,24.027864,229.65,229.55,4.3562]
[1738197653013,24.027864,229.65,229.54,0.063]
[1738197653411,0.12549,229.62,229.54,0.063]
[1738197653785,24.027864,229.6,229.54,0.063]
[1738197654501,0.12549,229.59,229.54,0.063]
[1738197654878,20.0,229.57,229.54,0.063]
[1738197655193,25.153354,229.55,229.54,0.0001]
[1738197655403,24.153354,229.55,229.54,0.0001]
[1738197655997,28.509654,229.55,229.54,0.0001]
[1738197658911,24.153354,229.5,229.38,14.17997703]
[1738197659206,1.0,229.43,229.36,0.063]
[1738197659404,0.12549,229.32,229.31,0.063]
[1738197659591,5.82626023,229.42,229.31,0.063]
[1738197660104,0.12549,229.38,229.31,0.063]
[1738197660687,10.8959,229.45,229.33,12.53907703]
[1738197660882,4.3584,229.44,229.35,12.53907703]
[1738197661203,3.12,229.49,229.41,12.53907703]
[1738197661407,27.9648,229.55,229.43,12.53907703]
[1738197661408,4.3574,229.5,229.43,12.53907703]
[1738197661606,24.027864,229.49,229.4,12.53907703]
[1738197661810,0.25098,229.49,229.4,12.53907703]
[1738197662306,0.12549,229.48,229.35,12.53907703]
[1738197662692,0.12549,229.48,229.34,12.53907703]
[1738197663286,24.153354,229.45,229.33,12.53907703]
[1738197663500,24.153354,229.45,229.31,4.4237]
[1738197663805,0.12549,229.42,229.31,0.063]
[1738197664590,24.153354,229.39,229.31,0.063]
[1738197664789,24.153354,229.39,229.35,0.063]
[1738197665190,24.153354,229.39,229.31,0.063]
[1738197665385,20.0,229.35,229.31,0.063]
[1738197665712,1.0,229.37,229.31,0.063]
[1738197665713,0.37647,229.34,229.31,0.063]
[1738197666117,20.25098,229.32,229.31,0.063]
[1738197666323,16.2584,229.38,229.31,0.063]
[1738197666324,23.776884,229.37,229.31,0.063]
[1738197666604,0.12549,229.33,229.31,0.063]
[1738197667407,4.48609,229.33,229.31,0.063]
[1738197667612,24.027864,229.32,229.31,0.063]
[1738197668811,24.153354,229.32,229.31,0.063]
[1738197671808,25.153354,229.32,229.31,0.063]
[1738197673215,24.153354,229.32,229.31,0.063]
[1738197674490,4.3606,229.33,229.31,0.063]
[1738197675392,6.05320696,229.38,229.31,0.063]
[1738197675598,4.3591,229.4,229.31,0.063]
[1738197675907,4.3584,229.44,229.34,12.53907703]
[1738197676102,4.3584,229.44,229.37,12.53907703]
[1738197676301,30.43129565,229.48,229.39,12.53907703]
[1738197676505,24.027864,229.47,229.39,12.53907703]
[1738197676798,4.3877,229.48,229.39,12.53907703]
[1738197677007,0.03,229.48,229.41,12.53907703]
[1738197677211,0.03,229.48,229.42,12.53907703]
[1738197678223,0.03,229.48,229.43,12.53907703]
[1738197682227,0.03,229.48,229.36,0.65368594]
[1738197682228,0.03,229.48,229.45,12.53907703]
[1738197682602,0.03,229.48,229.47,12.53907703]
[1738197682827,0.03,229.48,229.44,6.1323]
[1738197683002,0.03,229.48,229.39,12.53907703]
[1738197683632,0.03,229.48,229.41,12.53907703]
[1738197683834,0.03,229.48,229.45,12.53907703]
[1738197684033,0.03,229.48,229.47,12.53907703]
[1738197685127,0.03,229.48,229.46,13.19255899]
[1738197685321,0.03,229.48,229.46,12.53907703]
[1738197685920,0.03,229.48,229.47,12.53907703]
[1738197686243,0.03,229.48,229.45,1.5449]
[1738197686935,0.03,229.48,229.43,20.0683169]
[1738197687943,0.03,229.48,229.42,20.0683169]
[1738197688935,0.03,229.48,229.43,20.0683169]
[1738197690043,0.03,229.48,229.41,20.0683169]
[1738197690221,0.15549,229.48,229.39,20.0683169]
[1738197690433,0.03,229.48,229.41,20.0683169]
[1738197691321,0.03,229.48,229.38,5.9973]
[1738197691322,0.03,229.48,229.47,20.0683169]
[1738197691730,10.8851,229.68,229.47,20.7216524]
[1738197692023,10.8851,229.68,229.57,20.0683169]
[1738197692348,20.0,229.65,229.57,20.0683169]
[1738197693016,24.153354,229.67,229.57,20.0683169]
[1738197693217,0.12549,229.65,229.57,20.0683169]
[1738197693443,20.12549,229.65,229.57,20.0683169]
[1738197694125,4.3546,229.64,229.57,20.0683169]
[1738197698526,4.3546,229.64,229.55,20.0683169]
[1738197699143,0.12549,229.63,229.55,20.0683169]
[1738197699322,0.12549,229.63,229.53,20.0683169]
[1738197701154,0.12549,229.61,229.53,20.0683169]
[1738197702150,4.3554,229.6,229.53,20.0683169]
[1738197706159,4.3554,229.6,229.54,20.0683169]
[1738197708156,4.3554,229.6,229.53,20.0683169]
[1738197708533,4.3554,229.6,229.53,12.53375235]
[1738197710260,20.03,229.65,229.57,12.53375235]
[1738197710766,0.12549,229.64,229.57,12.53375235]
[1738197710935,4.48009,229.64,229.57,12.53375235]
[1738197711138,0.03,229.65,229.62,12.53375235]
[1738197711352,0.03,229.65,229.64,12.53375235]
[1738197711949,0.03,229.65,229.64,18.59385235]
[1738197712138,0.03,229.65,229.64,22.94845235]
[1738197713737,0.03,229.65,229.62,12.53375235]
[1738197714448,0.03,229.65,229.63,12.53375235]
[1738197716450,0.03,229.65,229.63,16.88845235]
[1738197716648,0.03,229.65,229.63,17.54150557]
[1738197717657,0.03,229.65,229.63,16.88845235]
[1738197718551,0.03,229.65,229.63,12.53375235]
[1738197718757,0.03,229.65,229.63,16.88845235]
[1738197719743,0.03,229.65,229.63,12.53375235]
[1738197720158,0.03,229.65,229.61,12.53375235]
[1738197721143,0.03,229.65,229.57,12.53375235]
[1738197723239,24.057864,229.65,229.55,12.53375235]
[1738197723443,0.25098,229.64,229.53,12.53375235]
[1738197723773,0.12549,229.6,229.49,12.53375235]
[1738197724674,0.12549,229.6,229.49,20.06004244]
[1738197724846,4.3555,229.59,229.49,20.06004244]
[1738197725164,24.027864,229.58,229.49,20.06004244]
[1738197725665,24.027864,229.58,229.48,0.063]
[1738197725965,0.12549,229.57,229.48,0.063]
[1738197727162,0.12549,229.55,229.48,0.063]
[1738197728158,24.027864,229.55,229.48,0.063]
[1738197728748,23.902374,229.55,229.48,0.063]
[1738197729066,4.48199,229.54,229.48,0.063]
[1738197729251,0.12549,229.53,229.48,0.063]
[1738197731159,24.027864,229.51,229.48,0.063]
[1738197731774,4.3566,229.54,229.48,20.12304244]
[1738197732075,4.3561,229.56,229.49,20.06004244]
[1738197732381,24.153354,229.55,229.48,0.063]
[1738197732948,0.12549,229.55,229.48,0.063]
[1738197733149,4.3565,229.54,229.48,0.063]
[1738197733452,4.3565,229.54,229.48,20.12304244]
[1738197733683,4.3565,229.54,229.48,0.063]
[1738197735072,24.027864,229.56,229.48,0.063]
[1738197735368,4.3561,229.56,229.5,20.06004244]
[1738197735557,4.355,229.62,229.52,20.06004244]
[1738197735756,4.355,229.62,229.53,20.06004244]
[1738197735964,24.153354,229.61,229.53,20.06004244]
[1738197736580,0.12549,229.59,229.53,20.06004244]
[1738197737167,7.7251,229.63,229.53,20.06004244]
[1738197737375,4.3547,229.64,229.56,20.06004244]
[1738197737977,0.03,229.6,229.56,20.06004244]
[1738197738683,0.03,229.6,229.58,20.06004244]
[1738197740069,0.03,229.6,229.59,20.7132096]
[1738197740467,0.03,229.6,229.59,25.0687096]
[1738197741465,0.03,229.6,229.59,26.6309096]
[1738197744580,0.0001,229.71,229.66,20.0]
[1738197744773,0.0001,229.71,229.7,20.06004244]
[1738197745087,0.0001,229.71,229.7,20.71283607]
[1738197745553,0.0001,229.71,229.7,20.06004244]
[1738197745757,0.0001,229.71,229.68,20.06004244]
[1738197746678,0.0001,229.71,229.67,12.51614938]
[1738197746879,0.0001,229.71,229.66,12.51614938]
[1738197748675,0.0001,229.71,229.62,12.51614938]
[1738197749777,4.3534,229.71,229.62,12.51614938]
[1738197749975,4.3534,229.71,229.64,12.51614938]
[1738197754777,5.9403,229.71,229.64,12.51614938]
[1738197755499,5.9403,229.71,229.6,12.51614938]
[1738197755500,0.12549,229.7,229.6,12.51614938]
[1738197755698,16.8235,229.71,229.62,12.51614938]
[1738197756000,16.8235,229.71,229.64,12.51614938]
[1738197756988,0.12549,229.7,229.62,12.51614938]
[1738197757300,5.9403,229.71,229.64,12.51614938]
[1738197757498,4.3534,229.71,229.64,12.51614938]
[1738197758380,0.0001,229.71,229.64,12.51614938]
[1738197758999,0.0001,229.71,229.67,12.51614938]
[1738197759298,0.0001,229.71,229.69,12.51614938]
[1738197759500,0.0001,229.71,229.7,13.16908166]
[1738197760378,0.0001,229.71,229.7,17.52258166]
[1738197763408,0.0001,229.71,229.7,13.16908166]
[1738197763725,0.0001,229.71,229.7,12.51614938]
[1738197768319,0.0001,229.71,229.7,16.86964938]
[1738197768523,0.0001,229.71,229.7,17.52245242]
[1738197769615,0.0001,229.71,229.7,16.86964938]
[1738197772315,0.0001,229.71,229.7,12.51614938]
[1738197772521,0.0001,229.71,229.67,12.51614938]
[1738197773823,0.0001,229.71,229.7,0.063]
[1738197776123,0.0001,229.71,229.7,0.063]
[1738197777222,0.0001,229.71,229.7,12.57914938]
[1738197777418,0.0001,229.71,229.7,16.93264938]
[1738197785625,6.0122,229.83,229.7,16.93264938]
[1738197785626,0.03,229.83,229.75,1.0]
[1738197785827,0.03,229.83,229.82,12.51614938]
[1738197786927,0.03,229.83,229.82,13.16854016]
[1738197787429,0.03,229.83,229.82,17.51974016]
[1738197790037,0.03,229.94,229.82,17.51974016]
[1738197790237,0.03,229.94,229.86,12.51614938]
[1738197790438,0.03,229.94,229.86,13.16846586]
[1738197791423,0.03,229.94,229.86,16.86654938]
[1738197792626,0.03,229.94,229.85,12.51614938]
[1738197793025,0.03,229.94,229.86,12.51614938]
[1738197793432,4.3789,229.94,229.86,12.51614938]
[1738197794833,4.3789,229.94,229.86,16.86654938]
[1738197795146,4.3789,229.94,229.85,12.51614938]
[1738197795653,0.03,229.94,229.86,12.51614938]
[1738197797742,0.03,229.94,229.86,16.86654938]
[1738197804059,0.03,229.94,229.89,20.0]
[1738197804246,0.03,229.94,229.93,12.51614938]
[1738197806059,0.03,229.94,229.93,16.86524938]
[1738197808562,0.03,229.94,229.93,13.06554304]
[1738197808785,0.03,229.94,229.93,13.71762728]
[1738197810363,6.599,230.07,229.95,20.0]
[1738197810547,6.599,230.07,230.01,8.71644304]
[1738197811857,1.5501,230.08,230.03,8.71644304]